fUST/lending_fUST_20250427
["ID","MTS","AMOUNT","RATE_DAILY","PERIOD"]
[359060140,1745683385049,152.0,0.00014,2]
[359060141,1745683399846,435.50947574,0.00014,2]
[359060142,1745683414743,197.37084585,0.00014,2]
[359060143,1745683430183,704.05907949,0.00014,2]
[359060144,1745683445829,602.85597383,0.00014,2]
[359060145,1745683461444,731.61183148,0.00014,2]
[359060147,1745683476971,205.36188729,0.00014,2]
[359060148,1745683492640,401.61496424,0.00014,2]
[359060149,1745683508315,1270.85309266,0.00014,2]
[359060151,1745683549115,-918.19355487,0.00014182,2]
[359060183,1745683625098,-165.86542398,0.00014182,2]
[359060184,1745683632097,-763.04291801,0.00014182,2]
[359060185,1745683632120,-362.0,0.00016437,2]
[359060186,1745683632142,-300.0,0.00016437,2]
[359060187,1745683632164,-400.0,0.00016438,2]
[359060188,1745683632187,-120.92924977,0.00016438,2]
[359060190,1745683646114,-279.07075023,0.00016438,2]
[359060191,1745683646137,-500.0,0.00016438,2]
[359060192,1745683646158,-500.0,0.00016438,2]
[359060193,1745683646179,-400.0,0.00016438,2]
[359060194,1745683646200,-538.79,0.00016438,2]
[359060195,1745683646220,-400.0,0.00016438,2]
[359060196,1745683646243,-500.0,0.00016438,2]
[359060197,1745683646264,-500.0,0.00016438,2]
[359060198,1745683646285,-400.0,0.00016438,2]
[359060199,1745683646306,-400.0,0.00016712,2]
[359060200,1745683646327,-225.4408119,0.00016712,2]
[359060201,1745683646348,-400.0,0.00016712,2]
[359060202,1745683646369,-175.42756,0.00016745,2]
[359060203,1745683646389,-400.0,0.00016986,2]
[359060204,1745683646410,-400.0,0.00016986,2]
[359060205,1745683646432,-472.45,0.0001726,2]
[359060206,1745683646458,-400.0,0.0001726,2]
[359060207,1745683646480,-400.0,0.00017534,2]
[359060208,1745683646502,-230.22,0.00017808,2]
[359060209,1745683646523,-420.0,0.00017963,2]
[359060210,1745683646544,-1932.32848968,0.00018272,2]
[359060211,1745683646564,-631.46,0.00018362,3]
[359060212,1745683646584,-500.0,0.00018372,2]
[359060213,1745683646604,-168.7,0.00018372,2]
[359060214,1745683646628,-359.03378415,0.00018372,2]
[359060215,1745683646656,-500.0,0.00018372,2]
[359060216,1745683646684,-500.0,0.00018372,2]
[359060217,1745683646716,-500.0,0.00018372,2]
[359060218,1745683646744,-500.0,0.00018372,2]
[359060219,1745683646772,-500.0,0.00018372,2]
[359060220,1745683646800,-500.0,0.00018372,2]
[359060221,1745683646828,-500.0,0.00018372,2]
[359060222,1745683646857,-500.0,0.00018372,2]
[359060223,1745683646885,-500.0,0.00018372,2]
[359060224,1745683646913,-500.0,0.00018372,2]
[359060225,1745683646941,-500.0,0.00018372,2]
[359060226,1745683646969,-500.0,0.00018372,2]
[359060227,1745683646999,-500.0,0.00018372,2]
[359060228,1745683647027,-500.0,0.00018372,2]
[359060229,1745683647056,-500.0,0.00018372,2]
[359060230,1745683647085,-500.0,0.00018372,2]
[359060231,1745683647115,-500.0,0.00018372,2]
[359060232,1745683647145,-500.0,0.00018372,2]
[359060233,1745683647174,-96.67581954,0.00018372,2]
[359060234,1745683648099,-403.32418046,0.00018372,2]
[359060235,1745683648132,-500.0,0.00018372,2]
[359060236,1745683648163,-318.08107836,0.00018372,2]
[359060275,1745683832724,-1690.78742847,0.00017375,2]
[359060277,1745683832736,-300.0,0.00017474,2]
[359060279,1745683832746,-500.0,0.00017475,2]
[359060281,1745683832759,-500.0,0.00017475,2]
[359060282,1745683832768,-563.72702948,0.00017475,2]
[359060284,1745683832778,-500.0,0.00017475,2]
[359060286,1745683832789,-500.0,0.00017475,2]
[359060288,1745683832798,-500.0,0.00017475,2]
[359060290,1745683832808,-500.0,0.00017475,2]
[359060292,1745683832818,-500.0,0.00017475,2]
[359060294,1745683832828,-500.0,0.00017475,2]
[359060296,1745683832838,-500.0,0.00017475,2]
[359060298,1745683832850,-500.0,0.00017475,2]
[359060299,1745683832861,-500.0,0.00017475,2]
[359060300,1745683832871,-2283.09687095,0.00017475,2]
[359060301,1745683832883,-2283.09687095,0.00017475,2]
[359060302,1745683832893,-1788.02373315,0.00017475,2]
[359060303,1745683833023,-495.0731378,0.00017475,2]
[359060304,1745683833035,-2283.09687095,0.00017475,2]
[359060305,1745683833046,-2283.09687095,0.00017475,2]
[359060306,1745683833057,-2283.09687095,0.00017475,2]
[359060307,1745683833069,-2283.09687095,0.00017475,2]
[359060308,1745683833082,-2283.09687095,0.00017475,2]
[359060309,1745683833094,-2283.09687095,0.00017475,2]
[359060310,1745683833106,-2283.09687095,0.00017475,2]
[359060311,1745683833118,-2283.09687095,0.00017475,2]
[359060313,1745683833131,-2283.09687095,0.00017475,2]
[359060314,1745683833144,-2283.09687095,0.00017475,2]
[359060315,1745683833157,-2283.09687095,0.00017475,2]
[359060316,1745683833169,-2283.09687095,0.00017475,2]
[359060317,1745683833181,-2283.09687095,0.00017475,2]
[359060318,1745683833194,-2283.09687095,0.00017475,2]
[359060319,1745683833206,-2283.09687095,0.00017475,2]
[359060320,1745683833219,-2283.09687095,0.00017475,2]
[359060321,1745683833232,-2283.09687095,0.00017475,2]
[359060322,1745683833245,-2283.09687095,0.00017475,2]
[359060323,1745683833256,-2283.09687095,0.00017475,2]
[359060324,1745683833268,-2283.09687095,0.00017475,2]
[359060325,1745683833279,-2283.09687095,0.00017475,2]
[359060326,1745683833291,-2283.09687095,0.00017475,2]
[359060327,1745683833304,-2283.09687095,0.00017475,2]
[359060328,1745683833316,-618.59657655,0.00017475,2]
[359060329,1745683833331,-1664.5002944,0.00017475,2]
[359060330,1745683833342,-2283.09687095,0.00017475,2]
[359060332,1745683833355,-2283.09687095,0.00017475,2]
[359060333,1745683833367,-2283.09687095,0.00017475,2]
[359060334,1745683833379,-2283.09687095,0.00017475,2]
[359060335,1745683833391,-2283.09687095,0.00017475,2]
[359060337,1745683833402,-2283.09687095,0.00017475,2]
[359060339,1745683833415,-2283.09687095,0.00017475,2]
[359060342,1745683833426,-2283.09687095,0.00017475,2]
[359060344,1745683833437,-2283.09687095,0.00017475,2]
[359060346,1745683833447,-2283.09687095,0.00017475,2]
[359060348,1745683833457,-2283.09687095,0.00017475,2]
[359060350,1745683833467,-2283.09687095,0.00017475,2]
[359060352,1745683833480,-2283.09687095,0.00017475,2]
[359060353,1745683833492,-2283.09687094,0.00017475,2]
[359060354,1745683833502,-2283.09687094,0.00017475,2]
[359060355,1745683833513,-2283.09687094,0.00017475,2]
[359060356,1745683833525,-2283.09687094,0.00017475,2]
[359060357,1745683833537,-2283.09687094,0.00017475,2]
[359060358,1745683833549,-2283.09687094,0.00017475,2]
[359060359,1745683833561,-2283.09687094,0.00017475,2]
[359060360,1745683833574,-2283.09687094,0.00017475,2]
[359060361,1745683833586,-2283.09687094,0.00017475,2]
[359060362,1745683833598,-2283.09687094,0.00017475,2]
[359060363,1745683833610,-2283.09687094,0.00017475,2]
[359060364,1745683833622,-2283.09687094,0.00017475,2]
[359060365,1745683833635,-2283.09687094,0.00017475,2]
[359060366,1745683833648,-2283.09687094,0.00017475,2]
[359060367,1745683833660,-2283.09687094,0.00017475,2]
[359060368,1745683833673,-2283.09687094,0.00017475,2]
[359060369,1745683833688,-2283.09687094,0.00017475,2]
[359060370,1745683833700,-2283.09687094,0.00017475,2]
[359060371,1745683833710,-2283.09687094,0.00017475,2]
[359060372,1745683833721,-2283.09687094,0.00017475,2]
[359060373,1745683833733,-2283.09687094,0.00017475,2]
[359060374,1745683833744,-2283.09687094,0.00017475,2]
[359060375,1745683833755,-2283.09687094,0.00017475,2]
[359060376,1745683833767,-2283.09687094,0.00017475,2]
[359060377,1745683833779,-2283.09687094,0.00017475,2]
[359060378,1745683833791,-2283.09687094,0.00017475,2]
[359060379,1745683833804,-2283.09687094,0.00017475,2]
[359060380,1745683833818,-2283.09687094,0.00017475,2]
[359060381,1745683833830,-603.78208336,0.00017475,2]
[359060382,1745683833846,-1679.31478758,0.00017475,2]
[359060383,1745683833859,-2283.09687095,0.00017475,2]
[359060384,1745683833870,-2283.09687095,0.00017475,2]
[359060385,1745683833882,-2283.09687095,0.00017475,2]
[359060386,1745683833894,-2283.09687095,0.00017475,2]
[359060387,1745683833905,-2283.09687095,0.00017475,2]
[359060388,1745683833918,-2283.09687095,0.00017475,2]
[359060389,1745683833929,-2283.09687095,0.00017475,2]
[359060390,1745683833940,-2283.09687095,0.00017475,2]
[359060391,1745683833953,-2283.09687095,0.00017475,2]
[359060392,1745683833965,-24900.0,0.00017476,2]
[359060393,1745683833976,-500.0,0.00017748,2]
[359060394,1745683833987,-500.0,0.00018022,2]
[359060395,1745683833998,-500.0,0.00018296,2]
[359060396,1745683834009,-500.0,0.00018373,2]
[359060397,1745683834020,-500.0,0.00018373,2]
[359060398,1745683834031,-500.0,0.00018373,2]
[359060399,1745683834043,-500.0,0.00018373,2]
[359060400,1745683834054,-500.0,0.00018373,2]
[359060401,1745683834065,-500.0,0.00018373,2]
[359060402,1745683834076,-500.0,0.00018373,2]
[359060403,1745683834087,-500.0,0.00018373,2]
[359060404,1745683834098,-500.0,0.00018373,2]
[359060405,1745683834109,-420.94,0.0001839,3]
[359060406,1745683834120,-210.47,0.0001839,3]
[359060407,1745683834132,-33498.03495444,0.000184,2]
[359060408,1745683834146,-653.40133027,0.000184,2]
[359060437,1745683838971,-364.49349868,0.00017475,2]
[359060440,1745683838983,-87653.69889275,0.000184,2]
[359060442,1745683838997,-178194.86482254,0.000184,2]
[359060444,1745683839008,-434.4704692,0.00018459,2]
[359060447,1745683839019,-500.0,0.0001857,2]
[359060449,1745683839031,-2737.38564275,0.000189,2]
[359060451,1745683839042,-420.0,0.00019076,2]
[359060453,1745683839053,-300.0,0.00019178,2]
[359060455,1745683839064,-100000.0,0.00019329,2]
[359060457,1745683839075,-500.0,0.00019373,2]
[359060460,1745683839087,-500.0,0.00019373,2]
[359060462,1745683839098,-841.88,0.0001976,3]
[359060465,1745683839110,-420.94,0.0001976,3]
[359060467,1745683839121,-500.0,0.00019973,2]
[359060469,1745683839132,-500.0,0.00019973,2]
[359060472,1745683839143,-500.0,0.00019973,2]
[359060476,1745683839155,-500.0,0.00019973,2]
[359060478,1745683839166,-500.0,0.00019973,2]
[359060480,1745683839177,-500.0,0.00019973,2]
[359060482,1745683839189,-501.04134267,0.00019973,2]
[359060485,1745683839200,-503.58110984,0.00019973,2]
[359060487,1745683839212,-500.0,0.00019973,2]
[359060489,1745683839223,-500.0,0.00019973,2]
[359060491,1745683839233,-500.0,0.00019973,2]
[359060493,1745683839244,-500.0,0.00019973,2]
[359060495,1745683839255,-500.0,0.00019973,2]
[359060497,1745683839266,-151.33355125,0.0002,2]
[359060500,1745683839277,-157729.54357338,0.0002,2]
[359061179,1745683846495,-18.92845432,0.000199,2]
[359061218,1745683846886,-1356.21988781,0.000199,2]
[359061220,1745683846896,-3004.93237219,0.0002,2]
[359061260,1745683847282,-2292.17746839,0.0002,2]
[359061262,1745683847294,-9818.44987334,0.0002,2]
[359061265,1745683847310,-2212.86268999,0.0002,2]
[359061267,1745683847322,-15868.28591607,0.0002,2]
[359061448,1745684740099,-420.826004,0.00016543,2]
[359061449,1745684740123,-153.90919318,0.00017266,2]
[359061450,1745684740146,-250.0,0.00017275,2]
[359061451,1745684740168,-23.97851965,0.00017366,2]
[359061454,1745684755086,-136.02148035,0.00017366,2]
[359061455,1745684755108,-153.90919317,0.00017371,2]
[359061456,1745684755131,-300.0,0.0001747,2]
[359061457,1745684755152,-300.0,0.0001747,2]
[359061458,1745684755174,-101.88868197,0.0001747,2]
[359061463,1745684830099,-211.1174264,0.00016473,2]
[359061464,1745684830124,-1479.43899992,0.00017371,2]
[359061465,1745684830148,-286.59433024,0.00017412,2]
[359061466,1745684830171,-300.0,0.00017469,2]
[359061467,1745684830195,-193.17588861,0.0001747,2]
[359061468,1745684832163,-904.93542942,0.0001747,2]
[359061469,1745684832186,-279.0,0.0001747,2]
[359061470,1745684832215,-500.0,0.0001747,2]
[359061471,1745684832244,-500.0,0.0001747,2]
[359061472,1745684832272,-500.0,0.0001747,2]
[359061473,1745684832301,-500.0,0.0001747,2]
[359061474,1745684832330,-500.0,0.0001747,2]
[359061475,1745684832364,-500.0,0.0001747,2]
[359061476,1745684832392,-158.1142788,0.0001747,2]
[359061477,1745684838108,-341.8857212,0.0001747,2]
[359061478,1745684838142,-500.0,0.0001747,2]
[359061479,1745684838175,-2.7728212,0.0001747,2]
[359061481,1745684844115,-497.2271788,0.0001747,2]
[359061482,1745684844145,-347.57595235,0.0001747,2]
[359061483,1745684850096,-250.0,0.00016443,2]
[359061484,1745684850126,-152.42404765,0.0001747,2]
[359061485,1745684850156,-461.39615548,0.0001747,2]
[359061511,1745685031790,-1302.73004354,0.00016,2]
[359061512,1745685031801,-3235.1010728,0.00016443,2]
[359061514,1745685031811,-208.09979,0.00016469,2]
[359061515,1745685031821,-507.4831806,0.0001647,2]
[359061516,1745685031831,-160.0,0.00017363,2]
[359061517,1745685031841,-1294.50912493,0.00017369,2]
[359061519,1745685031851,-380.9265481,0.00017372,2]
[359061520,1745685031860,-300.0,0.00017468,2]
[359061522,1745685031870,-500.0,0.00017469,2]
[359061524,1745685031879,-500.0,0.00017469,2]
[359061526,1745685031889,-500.0,0.00017469,2]
[359061528,1745685031899,-500.0,0.00017469,2]
[359061530,1745685031909,-500.0,0.00017469,2]
[359061532,1745685031918,-500.0,0.00017469,2]
[359061535,1745685031927,-500.0,0.00017469,2]
[359061538,1745685031937,-500.0,0.00017469,2]
[359061540,1745685031948,-500.0,0.00017469,2]
[359061542,1745685031957,-500.0,0.00017469,2]
[359061545,1745685031966,-500.0,0.00017469,2]
[359061547,1745685031976,-500.0,0.00017469,2]
[359061550,1745685031985,-500.0,0.00017469,2]
[359061554,1745685031995,-500.0,0.00017469,2]
[359061557,1745685032005,-500.0,0.00017469,2]
[359061559,1745685032014,-500.0,0.00017469,2]
[359061562,1745685032023,-500.0,0.00017469,2]
[359061564,1745685032033,-277.83470702,0.00017469,2]
[359061566,1745685032042,-500.0,0.00017469,2]
[359061568,1745685032051,-500.0,0.00017469,2]
[359061570,1745685032061,-500.0,0.00017469,2]
[359061572,1745685032071,-500.0,0.00017469,2]
[359061574,1745685032080,-500.0,0.00017469,2]
[359061576,1745685032090,-500.0,0.00017469,2]
[359061578,1745685032101,-500.0,0.00017469,2]
[359061580,1745685032110,-500.0,0.00017469,2]
[359061582,1745685032121,-500.0,0.00017469,2]
[359061584,1745685032135,-500.0,0.00017469,2]
[359061586,1745685032146,-500.0,0.00017469,2]
[359061588,1745685032155,-500.0,0.00017469,2]
[359061590,1745685032165,-500.0,0.00017469,2]
[359061592,1745685032175,-500.0,0.00017469,2]
[359061594,1745685032185,-500.0,0.00017469,2]
[359061596,1745685032194,-500.0,0.00017469,2]
[359061598,1745685032206,-500.0,0.00017469,2]
[359061600,1745685032216,-500.0,0.00017469,2]
[359061602,1745685032226,-468.99337647,0.00017469,2]
[359061604,1745685032235,-500.0,0.00017469,2]
[359061606,1745685032245,-500.0,0.00017469,2]
[359061608,1745685032256,-500.0,0.00017469,2]
[359061610,1745685032265,-500.0,0.00017469,2]
[359061613,1745685032277,-500.0,0.00017469,2]
[359061615,1745685032287,-500.0,0.00017469,2]
[359061617,1745685032297,-500.0,0.00017469,2]
[359061619,1745685032307,-500.0,0.00017469,2]
[359061621,1745685032318,-500.0,0.00017469,2]
[359061623,1745685032329,-500.0,0.00017469,2]
[359061625,1745685032338,-500.0,0.00017469,2]
[359061627,1745685032348,-500.0,0.00017469,2]
[359061629,1745685032358,-500.0,0.00017469,2]
[359061631,1745685032368,-500.0,0.00017469,2]
[359061633,1745685032377,-500.0,0.00017469,2]
[359061635,1745685032387,-500.0,0.00017469,2]
[359061637,1745685032397,-500.0,0.00017469,2]
[359061639,1745685032407,-500.0,0.00017469,2]
[359061641,1745685032418,-500.0,0.00017469,2]
[359061643,1745685032428,-500.0,0.00017469,2]
[359061645,1745685032438,-500.0,0.00017469,2]
[359061647,1745685032448,-500.0,0.00017469,2]
[359061649,1745685032458,-500.0,0.00017469,2]
[359061651,1745685032468,-500.0,0.00017469,2]
[359061653,1745685032478,-500.0,0.00017469,2]
[359061655,1745685032488,-500.0,0.00017469,2]
[359061657,1745685032497,-400.0,0.00017472,2]
[359061659,1745685032507,-304.87708678,0.00017472,2]
[359061661,1745685032517,-500.0,0.00017473,2]
[359061663,1745685032526,-500.0,0.00017473,2]
[359061665,1745685032537,-500.0,0.00017473,2]
[359061667,1745685032546,-500.0,0.00017473,2]
[359061669,1745685032556,-537.57019926,0.00017473,2]
[359061670,1745685032566,-306.70771323,0.00017473,2]
[359061672,1745685032575,-400.0,0.00017473,2]
[359061674,1745685032586,-270.14318896,0.00017473,2]
[359061675,1745685032596,-400.0,0.00017475,2]
[359061676,1745685032606,-400.0,0.00017475,2]
[359061677,1745685032616,-400.0,0.00017746,2]
[359061678,1745685032626,-199.19,0.00017747,2]
[359061679,1745685032636,-452.48379162,0.00017749,2]
[359061680,1745685032646,-463.09,0.00017749,2]
[359061681,1745685032656,-1329.31006403,0.000179,2]
[359061682,1745685032666,-400.0,0.0001802,2]
[359061683,1745685032677,-500.0,0.00018089,2]
[359061684,1745685032687,-500.0,0.00018156,2]
[359061685,1745685032697,-500.0,0.000182,2]
[359061686,1745685032706,-500.0,0.000182,2]
[359061687,1745685032716,-307.95388663,0.000182,2]
[359061688,1745685032730,-192.04611337,0.000182,2]
[359061689,1745685032741,-500.0,0.000182,2]
[359061690,1745685032750,-500.0,0.000182,2]
[359061691,1745685032760,-500.0,0.000182,2]
[359061692,1745685032770,-400.0,0.00018294,2]
[359061693,1745685032782,-240.16,0.00018568,2]
[359061694,1745685032793,-1329.3100638,0.00018659,2]
[359061695,1745685032803,-2737.38564275,0.000189,2]
[359061696,1745685032813,-380.92654807,0.00018913,2]
[359061697,1745685032824,-500.0,0.0001898,2]
[359061698,1745685032834,-420.0,0.0001907,2]
[359061699,1745685032844,-300.0,0.00019178,2]
[359061700,1745685032855,-1329.3100638,0.00019417,2]
[359061701,1745685032865,-179.76630381,0.0001952,2]
[359061702,1745685032876,-500.0,0.00019899,2]
[359061703,1745685032885,-500.0,0.00019899,2]
[359061704,1745685032896,-500.0,0.00019899,2]
[359061705,1745685032906,-500.0,0.00019899,2]
[359061706,1745685032916,-478.93744249,0.00019899,2]
[359061707,1745685032926,-358.34723372,0.00019899,2]
[359061708,1745685032935,-500.0,0.00019973,2]
[359061709,1745685032945,-500.0,0.00019973,2]
[359061710,1745685032955,-349.39,0.0001999,3]
[359061711,1745685032965,-174.69,0.0001999,3]
[359061712,1745685032974,-2619.5633762,0.0002,2]
[359061713,1745685032987,-5045.23099789,0.0002,2]
[359061745,1745685037905,-160.0,0.00019959,2]
[359061746,1745685037916,-52341.71968798,0.0002,2]
[359061747,1745685037926,-192.24773913,0.0002,2]
[359061748,1745685037937,-1329.3100638,0.00020176,2]
[359061749,1745685037947,-380.92654807,0.00020454,2]
[359061750,1745685037957,-1294.50912492,0.00020525,2]
[359061752,1745685037966,-587.0,0.00020819,2]
[359061754,1745685037976,-600.0,0.00020822,2]
[359061757,1745685037986,-1329.3100638,0.00020934,3]
[359061760,1745685037996,-1600.0,0.00020972,2]
[359061762,1745685038006,-150.0,0.00021,2]
[359061764,1745685038015,-157.45,0.00021,2]
[359061766,1745685038026,-160.0,0.00021002,3]
[359061768,1745685038035,-698.78,0.0002136,3]
[359061770,1745685038045,-349.38,0.0002136,3]
[359061772,1745685038055,-162.248,0.00021363,2]
[359061774,1745685038064,-1329.3100638,0.00021693,3]
[359061776,1745685038073,-12698.39408107,0.00021913,2]
[359061778,1745685038083,-160.0,0.00021917,2]
[359061780,1745685038093,-151.0,0.00021918,2]
[359061782,1745685038102,-380.92654807,0.00021995,2]
[359061784,1745685038113,-348.78755029,0.00022,2]
[359061786,1745685038123,-58771.53215075,0.00022,2]
[359061788,1745685038137,-2253.17077574,0.00022,7]
[359061790,1745685038146,-1000.0,0.00022,2]
[359061792,1745685038156,-151.0,0.00022055,2]
[359061794,1745685038165,-1600.0,0.00022068,2]
[359061796,1745685038175,-291.39740675,0.000221,2]
[359061798,1745685038185,-206.91617968,0.00022192,2]
[359061800,1745685038194,-151.0,0.00022192,2]
[359061802,1745685038204,-151.0,0.00022329,2]
[359061804,1745685038214,-1329.3100638,0.00022452,4]
[359061806,1745685038225,-900.0,0.00022466,2]
[359061808,1745685038235,-151.0,0.00022466,2]
[359061810,1745685038246,-160.0,0.00022501,4]
[359061812,1745685038255,-151.0,0.00022603,2]
[359061814,1745685038265,-823.0,0.00022728,2]
[359061816,1745685038275,-151.0,0.0002274,2]
[359061818,1745685038284,-245.0,0.00022877,2]
[359061820,1745685038294,-503.58110984,0.00022973,2]
[359061822,1745685038304,-200.0,0.00023,2]
[359061824,1745685038313,-247.02264083,0.00023,2]
[359061826,1745685038324,-1046.08964132,0.00023,2]
[359061828,1745685038334,-1600.0,0.00023164,2]
[359061830,1745685038345,-1329.3100638,0.0002321,4]
[359061832,1745685038354,-160.0,0.00023287,2]
[359061834,1745685038365,-524.12,0.000233,3]
[359061836,1745685038375,-634.0,0.000233,2]
[359061838,1745685038384,-160.0,0.000235,12]
[359061840,1745685038394,-380.92654807,0.00023536,2]
[359061842,1745685038403,-755.76072221,0.00023568,2]
[359061844,1745685038413,-1000.0,0.00023636,2]
[359061846,1745685038423,-1156.45,0.00023671,15]
[359061848,1745685038432,-390.36530191,0.00023679,2]
[359061850,1745685038442,-1000.0,0.00023679,2]
[359061852,1745685038451,-1000.0,0.00023679,2]
[359061853,1745685038462,-1000.0,0.00023679,2]
[359061855,1745685038473,-1000.0,0.00023679,2]
[359061858,1745685038484,-1000.0,0.00023679,2]
[359061859,1745685038494,-1000.0,0.00023679,2]
[359061862,1745685038504,-1294.50912492,0.00023681,2]
[359061864,1745685038514,-800.0,0.00023689,2]
[359061865,1745685038523,-800.0,0.00023689,2]
[359061867,1745685038533,-800.0,0.00023711,2]
[359061869,1745685038543,-800.0,0.00023725,2]
[359061871,1745685038553,-500.0,0.00023729,2]
[359061873,1745685038563,-800.0,0.00023747,2]
[359061875,1745685038574,-247.03734294,0.00023752,2]
[359061878,1745685038584,-222.4290127,0.0002376,2]
[359061880,1745685038594,-800.0,0.00023782,2]
[359061882,1745685038604,-800.0,0.00023786,2]
[359061884,1745685038614,-800.0,0.00023798,2]
[359061886,1745685038624,-800.0,0.00023809,2]
[359061888,1745685038634,-800.0,0.00023819,2]
[359061890,1745685038643,-800.0,0.00023819,2]
[359061892,1745685038653,-2337.35707944,0.0002382,2]
[359061894,1745685038662,-800.0,0.00023823,2]
[359061896,1745685038672,-800.0,0.00023825,2]
[359061897,1745685038681,-800.0,0.00023834,2]
[359061899,1745685038691,-800.0,0.00023839,2]
[359061901,1745685038701,-800.0,0.00023846,2]
[359061903,1745685038710,-800.0,0.00023858,2]
[359061905,1745685038719,-800.0,0.00023872,2]
[359061907,1745685038729,-800.0,0.00023883,2]
[359061909,1745685038739,-800.0,0.00023893,2]
[359061911,1745685038749,-2737.38564275,0.000239,2]
[359061913,1745685038758,-414.85897238,0.00023904,2]
[359061915,1745685038768,-800.0,0.00023908,2]
[359061917,1745685038778,-800.0,0.00023919,2]
[359061919,1745685038787,-800.0,0.0002392,2]
[359061921,1745685038798,-800.0,0.00023921,2]
[359061923,1745685038807,-800.0,0.00023942,2]
[359061925,1745685038817,-153.0,0.00023942,2]
[359061927,1745685038827,-153.0,0.00023947,2]
[359061929,1745685038836,-800.0,0.0002396,2]
[359061932,1745685038847,-1329.3100638,0.00023969,5]
[359061934,1745685038857,-500.0,0.00023973,2]
[359061936,1745685038867,-500.0,0.00023973,2]
[359061938,1745685038877,-500.0,0.00023973,2]
[359061940,1745685038887,-500.0,0.00023973,2]
[359061942,1745685038897,-500.0,0.00023973,2]
[359061943,1745685038908,-500.0,0.00023973,2]
[359061946,1745685038919,-500.0,0.00023973,2]
[359061947,1745685038929,-500.0,0.00023973,2]
[359061949,1745685038939,-500.0,0.00023973,2]
[359061951,1745685038950,-500.0,0.00023973,2]
[359061953,1745685038960,-409.94294498,0.0002399,2]
[359061955,1745685038969,-74306.09342955,0.0002399,2]
[359061958,1745685038982,-1219.75,0.0002399,2]
[359061960,1745685038994,-1203.63564093,0.0002399,2]
[359062079,1745685040217,-398.076,0.0002399,2]
[359062081,1745685040230,-1521.12312969,0.0002399,2]
[359062091,1745685040324,-1581.16795927,0.0002399,2]
[359062325,1745685043752,-46633.88924605,0.00021,2]
[359062490,1745685045926,-343.72106403,0.00019898,2]
[359062492,1745685045937,-174.928658,0.00019898,2]
[359062494,1745685045947,-500.0,0.00019898,2]
[359062496,1745685045957,-351.01281277,0.00019898,2]
[359062498,1745685045967,-331.12297618,0.00019898,2]
[359062500,1745685045977,-1857.72369319,0.00021,2]
[359062502,1745685045987,-19770.15384056,0.0002399,2]
[359062504,1745685045997,-6671.33695527,0.00024,2]
[359062714,1745685547292,2270.205,0.00022,30]
[359062729,1745685912003,913.41750259,0.00021,10]
[359062731,1745685941962,-1200.0,0.00015799,2]
[359062732,1745685941985,-579.31751132,0.000158,2]
[359062734,1745685954083,-1987.99311942,0.000158,2]
[359062735,1745686015737,10000.0,0.00022,30]
[359062736,1745686026313,10000.0,0.00023,120]
[359062737,1745686029113,-311.85848275,0.000158,2]
[359062738,1745686029136,-1363.11219661,0.000158,2]
[359062739,1745686029157,-300.0,0.00015899,2]
[359062740,1745686029176,-638.21883182,0.000159,2]
[359062741,1745686029197,-250.0,0.00016633,2]
[359062742,1745686029217,-194.267952,0.00016784,2]
[359062743,1745686029237,-300.0,0.00017363,2]
[359062744,1745686029263,-600.0,0.00017364,2]
[359062745,1745686029284,-200.8262885,0.00017368,2]
[359062746,1745686036095,-49.1737115,0.00017368,2]